bitfinex-derivatives/quotes_BTCF0:USTF0_20241217
["timestamp","ask_amount","ask_price","bid_price","bid_amount"]
[1734438238739,0.59378276,106570.0,106560.0,0.83373063]
[1734438238936,0.59378276,106570.0,106560.0,1.33967295]
[1734438239137,0.59378276,106570.0,106560.0,0.83373063]
[1734438239533,0.59378276,106570.0,106560.0,1.33969516]
[1734438239733,0.59378276,106570.0,106560.0,0.77766697]
[1734438240133,0.59378276,106570.0,106560.0,1.33969516]
[1734438240340,0.59378276,106570.0,106560.0,0.83373063]
[1734438240630,0.59378276,106570.0,106560.0,0.77768593]
[1734438241031,0.59378276,106570.0,106560.0,1.01716633]
[1734438241238,0.59378276,106570.0,106560.0,0.51118284]
[1734438241439,0.509255,106570.0,106560.0,0.51118284]
[1734438242941,0.55558276,106570.0,106560.0,0.46425484]
[1734438243242,0.59468276,106570.0,106560.0,0.46425484]
[1734438245144,0.56652776,106570.0,106560.0,0.46425484]
[1734438245351,0.61345476,106570.0,106560.0,0.73075793]
[1734438247244,0.61345476,106570.0,106560.0,0.52047193]
[1734438247947,0.58439728,106570.0,106560.0,0.52047193]
[1734438248655,0.58439728,106570.0,106560.0,0.73075793]
[1734438248947,0.58439728,106570.0,106560.0,1.29278612]
[1734438249337,0.58439728,106570.0,106560.0,0.7307324]
[1734438249849,0.58439728,106570.0,106560.0,0.92433485]
[1734438250051,0.63986756,106570.0,106560.0,0.71404885]
[1734438250255,0.58439728,106570.0,106560.0,0.71404885]
[1734438250647,0.63986756,106570.0,106560.0,0.65856437]
[1734438250951,0.58439728,106570.0,106560.0,0.65856437]
[1734438251354,0.58439728,106570.0,106560.0,0.64407593]
[1734438255155,0.57501128,106570.0,106560.0,0.64335558]
[1734438255750,0.519541,106570.0,106560.0,0.64335558]
[1734438255948,0.57501128,106570.0,106560.0,0.64335558]
[1734438256447,0.57501128,106570.0,106560.0,0.19361869]
[1734438256755,0.57501128,106570.0,106560.0,0.64333694]
[1734438257150,0.57501128,106570.0,106560.0,0.19361869]
[1734438257350,0.57501128,106570.0,106560.0,0.6433633]
[1734438259061,0.57501128,106570.0,106560.0,0.19361869]
[1734438259262,0.57501128,106570.0,106560.0,0.64341439]
[1734438259762,0.57501128,106570.0,106560.0,0.64369625]
[1734438260258,0.57501128,106570.0,106560.0,1.149694]
[1734438260465,0.57501128,106570.0,106560.0,0.64373604]
[1734438260851,0.480441,106570.0,106560.0,0.69066404]
[1734438261058,0.46319728,106570.0,106560.0,0.74678651]
[1734438261258,0.46319728,106570.0,106560.0,0.78688651]
[1734438262254,0.46319728,106570.0,106560.0,1.01201414]
[1734438262955,0.46319728,106570.0,106560.0,0.96508614]
[1734438264351,0.46319728,106570.0,106560.0,0.95486937]
[1734438265467,0.46319728,106570.0,106560.0,1.0578676]
[1734438266967,0.46319728,106570.0,106560.0,1.11314653]
[1734438267170,0.46319728,106570.0,106560.0,1.6756764]
[1734438267463,0.46319728,106570.0,106560.0,1.36325078]
[1734438267866,0.46319728,106570.0,106560.0,1.15684653]
[1734438268352,0.46319728,106570.0,106560.0,1.40695078]
[1734438268973,0.46319728,106570.0,106560.0,1.51789134]
[1734438268974,0.407727,106570.0,106560.0,1.51789134]
[1734438269268,0.407727,106570.0,106560.0,1.52668191]
[1734438269570,0.407727,106570.0,106560.0,0.85844515]
[1734438269961,0.407727,106570.0,106560.0,1.47703352]
[1734438270366,0.046927,106570.0,106560.0,1.47703352]
[1734438270668,0.407727,106570.0,106560.0,1.47703352]
[1734438271052,0.407727,106570.0,106560.0,1.17063389]
[1734438271053,0.46319728,106570.0,106560.0,1.17063389]
[1734438271253,0.46319728,106570.0,106560.0,1.11516361]
[1734438271966,0.46319728,106570.0,106560.0,1.17063389]
[1734438273470,0.46319728,106570.0,106560.0,1.11516361]
[1734438273766,0.10239728,106570.0,106560.0,1.17145899]
[1734438273972,0.10239728,106570.0,106560.0,1.22692927]
[1734438274966,0.046927,106570.0,106560.0,1.17145899]
[1734438275170,0.037541,106570.0,106560.0,1.73358367]
[1734438275377,0.037541,106570.0,106560.0,1.17046558]
[1734438275670,0.037541,106570.0,106560.0,0.6083409]
[1734438275867,0.037541,106570.0,106560.0,1.22692927]
[1734438276073,0.037541,106570.0,106560.0,1.78900135]
[1734438276473,0.037541,106570.0,106560.0,1.78900337]
[1734438276667,0.037541,106570.0,106560.0,1.22692927]
[1734438276868,0.037541,106570.0,106560.0,1.78896037]
[1734438277064,0.09301128,106570.0,106560.0,1.11490172]
[1734438277662,0.09301128,106570.0,106560.0,1.170372]
[1734438277869,0.09301128,106570.0,106560.0,0.6083409]
[1734438278065,0.09301128,106570.0,106560.0,1.22692927]
[1734438279073,0.037541,106570.0,106560.0,1.22692927]
[1734438280773,0.037541,106570.0,106560.0,1.47703352]
[1734438281176,0.037541,106570.0,106560.0,0.85844515]
[1734438281778,0.037541,106570.0,106560.0,1.49491642]
[1734438281965,0.037541,106570.0,106560.0,0.87680462]
[1734438282165,0.53168364,106590.0,106570.0,0.046924]
[1734438282379,6.564e-05,106590.0,106580.0,0.71975769]
[1734438282579,6.564e-05,106590.0,106580.0,1.58685882]
[1734438282876,0.178109,106610.0,106600.0,0.046911]
[1734438283176,0.178109,106610.0,106600.0,0.86310771]
[1734438283177,0.090809,106610.0,106600.0,0.86310771]
[1734438283370,0.046909,106610.0,106600.0,1.13562897]
[1734438283768,0.046909,106610.0,106600.0,1.13574986]
[1734438284176,0.407709,106610.0,106600.0,1.64070198]
[1734438284365,0.046909,106610.0,106600.0,1.64070198]
[1734438284565,0.10237928,106610.0,106600.0,1.64070198]
[1734438284767,0.10237928,106610.0,106600.0,1.0791245]
[1734438284970,0.10237928,106610.0,106600.0,0.84790324]
[1734438285680,0.46317928,106610.0,106600.0,0.79243296]
[1734438286074,0.407709,106610.0,106600.0,0.79243296]
[1734438287185,0.407709,106610.0,106600.0,0.79086244]
[1734438288669,0.407709,106610.0,106600.0,1.23892101]
[1734438288875,0.407709,106610.0,106600.0,0.73396889]
[1734438289075,0.407709,106610.0,106600.0,1.23892101]
[1734438289273,0.407709,106610.0,106600.0,0.73396889]
[1734438289672,0.407709,106610.0,106600.0,0.79086244]
[1734438290479,0.407709,106610.0,106600.0,1.23878582]
[1734438291194,0.407709,106610.0,106600.0,0.7338337]
[1734438291681,0.407709,106610.0,106600.0,0.73877409]
[1734438293177,0.407709,106610.0,106600.0,0.79580283]
[1734438293875,0.046909,106610.0,106600.0,1.2436608]
[1734438294076,0.046909,106610.0,106600.0,0.79580283]
[1734438294987,0.45468665,106620.0,106600.0,0.81412085]
[1734438295180,0.50158865,106620.0,106610.0,0.4478281]
[1734438295386,0.50158865,106620.0,106610.0,0.65034692]
[1734438296673,0.50158865,106620.0,106610.0,0.69725292]
[1734438296874,0.41713812,106620.0,106610.0,0.69725292]
[1734438297182,0.357709,106620.0,106610.0,0.72572901]
[1734438297390,0.404611,106620.0,106610.0,1.20220504]
[1734438298887,0.404611,106620.0,106610.0,1.21512309]
[1734438299279,0.404611,106620.0,106610.0,0.71017097]
[1734438300889,0.404611,106620.0,106610.0,0.70695528]
[1734438302290,0.404611,106620.0,106610.0,0.53949649]
[1734438302480,0.404611,106620.0,106610.0,0.58640249]
[1734438304085,0.404611,106620.0,106610.0,0.58044784]
[1734438304287,0.407702,106620.0,106610.0,0.58044784]
[1734438304979,0.046902,106620.0,106610.0,0.58044784]
[1734438305178,0.407702,106620.0,106610.0,1.08539996]
[1734438305391,0.407702,106620.0,106610.0,0.75812465]
[1734438306681,0.1565,106620.0,106610.0,0.84257518]
[1734438306888,0.3608,106680.0,106620.0,0.046902]
[1734438307083,0.37331149,106670.0,106640.0,0.86575212]
[1734438307287,0.37331149,106670.0,106660.0,0.39221124]
[1734438307288,0.18459149,106670.0,106660.0,0.39221124]
[1734438307591,0.62984202,106670.0,106660.0,0.39221124]
[1734438307787,0.62984202,106670.0,106660.0,0.57989546]
[1734438308094,0.65614405,106670.0,106660.0,0.18777037]
[1734438308397,0.65614405,106670.0,106660.0,0.37759097]
[1734438308698,0.65614405,106670.0,106660.0,0.18990675]
[1734438308879,0.60076777,106670.0,106660.0,0.18990675]
[1734438309084,0.65614405,106670.0,106660.0,0.18990675]
[1734438309886,0.60076777,106670.0,106660.0,0.18990675]
[1734438310091,0.54539149,106670.0,106660.0,0.18990675]
[1734438310696,0.62976599,106670.0,106660.0,0.18990675]
[1734438319001,0.62976599,106670.0,106660.0,0.52559901]
[1734438320401,0.54539149,106670.0,106660.0,0.52559901]
[1734438320607,0.54539149,106670.0,106660.0,0.18990675]
[1734438321308,0.54539149,106670.0,106660.0,0.66649249]
[1734438321914,0.54539149,106670.0,106660.0,0.58211799]
[1734438322410,0.54539149,106670.0,106660.0,0.80837687]
[1734438322600,0.54539149,106670.0,106660.0,1.33991921]
[1734438322797,0.54539149,106670.0,106660.0,0.58156271]
[1734438323001,0.54539149,106670.0,106660.0,0.66593721]
[1734438323915,0.54539149,106670.0,106660.0,0.58156271]
[1734438326613,0.54539149,106670.0,106660.0,0.39174211]
[1734438326812,0.54539149,106670.0,106660.0,0.58088347]
[1734438328515,0.54539149,106670.0,106660.0,0.80633272]
[1734438329117,0.54539149,106670.0,106660.0,0.58088347]
[1734438329320,0.18459149,106670.0,106660.0,0.58088347]
[1734438329619,0.54539149,106670.0,106660.0,0.80633272]
[1734438331510,0.54539149,106670.0,106660.0,0.89070722]
[1734438331815,0.04699926,106680.0,106660.0,1.35445838]
[1734438332010,0.04699926,106680.0,106670.0,0.46301758]
[1734438332709,0.04699926,106680.0,106670.0,1.93416788]
[1734438332910,0.04699926,106680.0,106670.0,0.87021236]
[1734438333110,0.04699926,106680.0,106670.0,1.31819363]
[1734438333917,0.04699926,106680.0,106670.0,1.42955706]
[1734438334112,0.04699926,106680.0,106670.0,1.48552653]
[1734438335016,0.04699926,106680.0,106670.0,1.74261423]
[1734438335227,0.146869,106700.0,106670.0,1.84086411]
[1734438335514,0.146869,106700.0,106690.0,0.60625862]
[1734438335715,0.146869,106700.0,106690.0,1.0134534]
[1734438336117,0.146869,106700.0,106690.0,1.03563699]
[1734438336307,0.15920343,106700.0,106690.0,1.03563699]
[1734438337017,0.146869,106700.0,106690.0,1.03563699]
[1734438337721,0.146869,106700.0,106690.0,0.95134234]
[1734438337922,0.226269,106700.0,106690.0,0.95134234]
[1734438338819,0.226269,106700.0,106690.0,1.03563699]
[1734438339219,0.226269,106700.0,106690.0,1.35198598]
[1734438339416,0.587069,106700.0,106690.0,1.35198598]
[1734438339717,0.226269,106700.0,106690.0,1.35198598]
[1734438339914,0.587069,106700.0,106690.0,1.35198598]
[1734438340322,0.587069,106700.0,106690.0,0.63019178]
[1734438341418,0.59847713,106700.0,106690.0,1.02146182]
[1734438342326,0.59847713,106700.0,106690.0,0.57394718]
[1734438344918,0.59847713,106700.0,106690.0,0.62081818]
[1734438345418,0.59847713,106700.0,106690.0,0.23085762]
[1734438346422,0.59847713,106700.0,106690.0,0.62212766]
[1734438348028,0.59847713,106700.0,106690.0,0.67837226]
[1734438348229,0.59847713,106700.0,106690.0,0.63150126]
[1734438349934,0.59847713,106700.0,106690.0,0.63217004]
[1734438350228,0.59847713,106700.0,106690.0,0.85227221]
[1734438350731,0.59847713,106700.0,106690.0,0.57602654]
[1734438351927,0.68277178,106700.0,106690.0,1.02354118]
[1734438352226,0.68277178,106700.0,106690.0,0.8521498]
[1734438352426,0.59847713,106700.0,106690.0,0.8521498]
[1734438352821,0.59847713,106700.0,106690.0,1.02364034]
[1734438353226,0.59847713,106700.0,106690.0,1.24374251]
[1734438355121,0.59847713,106700.0,106690.0,0.8521498]
[1734438356036,0.6538102,106700.0,106690.0,1.24398053]
[1734438356333,0.6538102,106700.0,106690.0,0.8521498]
[1734438358530,0.6538102,106700.0,106690.0,1.35619984]
[1734438358744,0.6538102,106700.0,106690.0,0.8521498]
[1734438359125,0.6538102,106700.0,106690.0,1.35619984]
[1734438359434,0.6538102,106700.0,106690.0,0.90880761]
[1734438360131,0.59847713,106700.0,106690.0,0.90880761]
[1734438360321,0.59847713,106700.0,106690.0,1.16435654]
[1734438360522,0.6538102,106700.0,106690.0,1.16435654]
[1734438361632,0.6538102,106700.0,106690.0,1.72433313]
[1734438361839,0.6538102,106700.0,106690.0,1.16435654]
[1734438362026,0.6538102,106700.0,106690.0,1.72433313]
[1734438362927,0.6538102,106700.0,106690.0,1.16435654]
[1734438363431,0.6538102,106700.0,106690.0,1.56114709]
[1734438363923,0.6538102,106700.0,106690.0,0.97970114]
[1734438364435,0.6538102,106700.0,106690.0,1.53967773]
[1734438365235,0.6538102,106700.0,106690.0,1.03562769]
[1734438366036,0.6538102,106700.0,106690.0,1.54086046]
[1734438366432,0.6538102,106700.0,106690.0,1.03562769]
[1734438366927,0.6538102,106700.0,106690.0,1.74728341]
[1734438367134,0.6538102,106700.0,106690.0,1.52718124]
[1734438367536,0.59847713,106700.0,106690.0,1.52718124]
[1734438367738,0.59847713,106700.0,106690.0,1.02253772]
[1734438368131,0.59847713,106700.0,106690.0,0.96720465]
[1734438370341,0.6538102,106700.0,106690.0,0.96720465]
[1734438370940,0.59847713,106700.0,106690.0,0.96720465]
[1734438371440,0.59847713,106700.0,106690.0,0.9680216]
[1734438371738,0.6538102,106700.0,106690.0,1.02274099]
[1734438372248,0.6538102,106700.0,106690.0,1.52808475]
[1734438372543,0.70914327,106700.0,106690.0,1.42611623]
[1734438372837,0.70914327,106700.0,106690.0,0.96810816]
[1734438373834,0.70914327,106700.0,106690.0,1.41733546]
[1734438374235,0.70914327,106700.0,106690.0,1.41727946]
[1734438374236,1.00914327,106700.0,106690.0,1.41727946]
[1734438374944,0.70914327,106700.0,106690.0,1.41727946]
[1734438375149,0.59847713,106700.0,106690.0,1.02344123]
[1734438375648,0.59847713,106700.0,106690.0,1.07807406]
[1734438375942,0.59847713,106700.0,106690.0,0.86325941]
[1734438376133,0.59847713,106700.0,106690.0,1.07681646]
[1734438376335,0.6538102,106700.0,106690.0,1.02148339]
[1734438377045,0.59847713,106700.0,106690.0,1.02148339]
[1734438377239,0.6538102,106700.0,106690.0,1.02148339]
[1734438377435,0.59847713,106700.0,106690.0,1.52672825]
[1734438377635,0.6538102,106700.0,106690.0,1.02148339]
[1734438377847,0.59847713,106700.0,106690.0,1.58209581]
[1734438378143,0.59847713,106700.0,106690.0,1.07681646]
[1734438378340,0.51907713,106700.0,106690.0,0.85483939]
[1734438378544,0.46550708,106700.0,106690.0,0.85483939]
[1734438378745,0.10470708,106700.0,106690.0,1.21563939]
[1734438378931,0.05200932,106700.0,106690.0,1.21563939]
[1734438379332,0.00514032,106700.0,106690.0,1.27097246]
[1734438379539,0.00514032,106700.0,106690.0,1.88835922]
[1734438379841,0.00514032,106700.0,106690.0,1.27097246]
[1734438380451,0.046867,106700.0,106690.0,1.27096846]
[1734438381240,0.046867,106700.0,106690.0,1.27084846]
[1734438382047,0.046867,106700.0,106690.0,1.25535436]
[1734438384650,0.046865,106710.0,106700.0,0.046864]
[1734438384949,0.046865,106710.0,106700.0,0.95526886]
[1734438385345,0.046865,106710.0,106700.0,1.32485494]
[1734438385549,0.046865,106710.0,106700.0,1.31606886]
[1734438386139,0.046865,106710.0,106700.0,1.87634741]
[1734438387841,0.046865,106710.0,106700.0,1.25992467]
[1734438388252,0.05823957,106720.0,106710.0,0.046863]
[1734438388454,0.04694933,106720.0,106710.0,0.84286571]
[1734438389351,0.04694933,106720.0,106710.0,0.84209534]
[1734438391251,0.04694933,106720.0,106710.0,0.75782457]
[1734438394850,0.12654933,106720.0,106710.0,0.75782457]
[1734438395051,0.48734933,106720.0,106710.0,0.75782457]
[1734438395850,0.48734933,106720.0,106710.0,0.71096157]
[1734438396053,0.5716201,106720.0,106710.0,1.15879211]
[1734438396350,0.8716201,106720.0,106710.0,0.59891875]
[1734438396547,0.8716201,106720.0,106710.0,0.21192416]
[1734438396752,0.8716201,106720.0,106700.0,0.95185113]
[1734438396753,0.046862,106710.0,106700.0,0.06253516]
[1734438397057,0.046871,106690.0,106680.0,0.68809871]
[1734438397354,0.046871,106690.0,106670.0,0.44783054]
[1734438397355,0.046876,106680.0,106670.0,0.44783054]
[1734438397541,0.407676,106680.0,106670.0,0.44783054]
[1734438397958,0.04688,106670.0,106660.0,0.47851669]
[1734438398144,0.49195077,106670.0,106660.0,0.44791669]
[1734438398341,0.40768,106670.0,106660.0,0.44791669]
[1734438401855,0.40768,106670.0,106660.0,8.615e-05]
[1734438402758,0.41893242,106670.0,106660.0,8.615e-05]
[1734438403259,0.04688,106670.0,106660.0,0.13124092]
[1734438403769,0.04688,106670.0,106660.0,0.57907146]
[1734438403952,0.04688,106670.0,106660.0,0.04697015]
[1734438404251,0.04688,106670.0,106660.0,0.49480069]
[1734438404457,0.04688,106670.0,106660.0,0.57907146]
[1734438407247,0.04688,106670.0,106660.0,0.13124092]
[1734438409057,0.046877,106680.0,106670.0,0.046876]
[1734438409358,0.046877,106680.0,106670.0,0.16824677]
[1734438409945,0.046877,106680.0,106670.0,0.20794677]
[1734438410360,0.046877,106680.0,106670.0,0.56874677]
[1734438410546,0.046877,106680.0,106670.0,1.01657731]
[1734438410947,0.046873,106690.0,106680.0,0.046871]
[1734438411159,0.046873,106690.0,106680.0,0.21671377]
[1734438411656,0.046873,106690.0,106670.0,0.93231054]
[1734438411657,0.046876,106680.0,106670.0,0.93231054]
[1734438412261,0.046876,106680.0,106670.0,1.01658131]
[1734438416063,0.046876,106680.0,106670.0,0.56875077]
[1734438416356,0.046876,106680.0,106670.0,0.96003859]
[1734438416859,0.046876,106680.0,106670.0,1.01658131]
[1734438417360,0.046876,106680.0,106670.0,0.93231054]
[1734438418355,0.046876,106680.0,106670.0,1.01658131]
[1734438418774,0.046876,106680.0,106670.0,1.07173312]
[1734438420161,0.046876,106680.0,106670.0,0.98746235]
[1734438423664,0.046876,106680.0,106670.0,1.04475855]
[1734438423962,0.046876,106680.0,106670.0,0.98858682]
[1734438424262,0.046876,106680.0,106670.0,1.04475855]
[1734438424457,0.046876,106680.0,106670.0,1.63337493]
[1734438425261,0.046876,106680.0,106670.0,1.33437516]
[1734438426276,0.046874,106690.0,106680.0,0.046871]
[1734438426563,0.046874,106690.0,106680.0,0.7185689]
[1734438426758,0.046874,106690.0,106680.0,0.6716929]
[1734438426962,0.046874,106690.0,106680.0,1.23197145]
[1734438427162,0.046874,106690.0,106680.0,1.35304652]
[1734438427464,0.046874,106690.0,106680.0,0.84829539]
[1734438427964,0.046874,106690.0,106680.0,0.81249539]
[1734438431967,0.046874,106690.0,106680.0,0.86782982]
[1734438432267,0.046874,106690.0,106680.0,0.8766159]
[1734438432463,0.046874,106690.0,106680.0,1.49303864]
[1734438432769,0.046874,106690.0,106680.0,1.48425256]
[1734438432966,0.45689066,106700.0,106690.0,0.046871]
[1734438433162,0.046868,106700.0,106690.0,1.17714595]
[1734438433355,0.046868,106700.0,106690.0,0.88856154]
[1734438433562,0.046868,106700.0,106690.0,0.94120794]
[1734438434070,0.046868,106700.0,106690.0,0.97016814]
[1734438434257,0.407664,106710.0,106700.0,0.046867]
[1734438434459,0.407664,106710.0,106700.0,0.63620823]
[1734438434657,0.407664,106710.0,106700.0,1.31491611]
[1734438434963,0.046864,106710.0,106700.0,1.39921074]
[1734438435155,0.046864,106710.0,106700.0,0.89416414]
[1734438435355,0.04694933,106720.0,106700.0,0.74958006]
[1734438435569,0.04694933,106720.0,106710.0,0.70071737]
[1734438435767,0.04694933,106720.0,106710.0,1.47210796]
[1734438436365,0.04694933,106720.0,106710.0,1.70987745]
[1734438436662,0.04694933,106720.0,106710.0,0.58876087]
[1734438437062,0.04694933,106720.0,106710.0,0.63562287]
[1734438437264,0.04694933,106720.0,106710.0,1.08387695]
[1734438437465,0.04694933,106720.0,106710.0,0.57941071]
[1734438437671,0.04694933,106720.0,106710.0,0.49511608]
[1734438439267,0.04694933,106720.0,106710.0,0.57941071]
[1734438446666,0.04694933,106720.0,106710.0,0.61821071]
[1734438447071,0.49204396,106720.0,106710.0,0.44825408]
[1734438447271,0.52944396,106720.0,106700.0,1.37119931]
[1734438447467,0.046863,106710.0,106700.0,0.86673307]
[1734438449065,0.046863,106710.0,106700.0,0.92294523]
[1734438450469,0.046863,106710.0,106700.0,1.00723986]
[1734438453385,0.046863,106710.0,106700.0,1.56798603]
[1734438453771,0.046863,106710.0,106700.0,1.00723986]
[1734438453976,0.046863,106710.0,106700.0,1.56798603]
[1734438454282,0.046863,106710.0,106700.0,1.00723986]
[1734438454586,0.046863,106710.0,106700.0,1.56798603]
[1734438455289,0.046863,106710.0,106700.0,1.06351979]
[1734438455584,0.046863,106710.0,106700.0,0.97922516]
[1734438456083,0.046863,106710.0,106700.0,0.86653958]
[1734438456471,0.046863,106710.0,106700.0,0.95083421]
[1734438457883,0.046863,106710.0,106700.0,0.86653958]
[1734438459182,0.05744642,106710.0,106700.0,0.86653958]
[1734438460786,0.05744642,106710.0,106700.0,0.92254715]
[1734438461184,0.05744642,106710.0,106700.0,1.17839987]
[1734438461489,0.05744642,106710.0,106700.0,1.17972089]
[1734438461876,0.05744642,106710.0,106700.0,1.26401552]
[1734438462078,0.05744642,106710.0,106700.0,1.23503094]
[1734438462378,0.05744642,106710.0,106700.0,1.85145368]
[1734438462687,0.05744642,106710.0,106700.0,1.34601756]
[1734438462876,0.05744642,106710.0,106700.0,1.90729188]
[1734438463487,0.05744642,106710.0,106700.0,1.90224407]
[1734438463773,0.05744642,106710.0,106700.0,1.48376508]
[1734438464081,0.05744642,106710.0,106700.0,1.53063008]
[1734438464496,0.05744642,106710.0,106700.0,1.53941616]
[1734438464888,0.05744642,106710.0,106700.0,0.97825176]
[1734438466393,0.41824642,106710.0,106700.0,0.92294171]
[1734438466593,0.43140172,106710.0,106700.0,1.04332484]
[1734438466794,0.42086303,106710.0,106700.0,1.04332484]
[1734438466984,0.42086303,106710.0,106700.0,0.82076666]
[1734438467992,0.42086303,106710.0,106700.0,1.38235206]
[1734438468197,0.42086303,106710.0,106700.0,1.38237609]
[1734438468390,0.43097528,106710.0,106700.0,0.75716727]
[1734438468595,0.43097528,106710.0,106700.0,1.26252458]
[1734438468900,0.43097528,106710.0,106700.0,0.70091515]
[1734438469588,0.43097528,106710.0,106700.0,1.26252458]
[1734438470293,0.43097528,106710.0,106700.0,0.50546723]
[1734438470500,0.43097528,106710.0,106700.0,0.70461733]
[1734438471586,0.43097528,106710.0,106700.0,0.50546723]
[1734438472193,0.43097528,106710.0,106700.0,0.95442556]
[1734438473388,0.43097528,106710.0,106700.0,0.44906825]
[1734438476694,0.43097528,106710.0,106700.0,0.95442556]
[1734438477087,0.43097528,106710.0,106700.0,0.44906825]
[1734438478395,0.48628533,106710.0,106700.0,0.44906825]
[1734438478608,0.48628533,106710.0,106700.0,0.44881241]
[1734438480302,0.48628533,106710.0,106700.0,0.00010992]
[1734438485407,0.43097528,106710.0,106700.0,0.00010992]
[1734438485815,0.48628533,106710.0,106700.0,0.00010992]
[1734438489202,0.43097528,106710.0,106700.0,0.00010992]
[1734438489813,0.48628533,106710.0,106700.0,0.00010992]
[1734438490518,0.43097528,106710.0,106700.0,0.00010992]
[1734438491820,0.43097528,106710.0,106700.0,0.44881241]
[1734438492116,0.43097528,106710.0,106700.0,0.00010992]
[1734438492313,0.43097528,106710.0,106700.0,0.44881241]
[1734438493916,0.43097528,106710.0,106700.0,0.00010992]
[1734438494307,0.37566523,106710.0,106700.0,0.00010992]
[1734438494507,0.43097528,106710.0,106700.0,0.00010992]
[1734438495309,0.43097528,106710.0,106700.0,0.44881241]
[1734438496220,0.37566523,106710.0,106690.0,0.57905731]
[1734438496413,0.46297705,106700.0,106690.0,0.57905731]
[1734438497323,0.46297705,106700.0,106690.0,0.57915234]
[1734438498620,0.46297705,106700.0,106690.0,0.76931796]
[1734438500313,0.46297705,106700.0,106690.0,0.07379503]
[1734438501915,0.5182871,106700.0,106690.0,0.07379503]
[1734438504429,0.5182871,106700.0,106690.0,0.57915234]
[1734438505438,0.407667,106700.0,106690.0,0.57915234]
[1734438505636,0.5182871,106700.0,106690.0,0.57915234]
[1734438506329,0.5182871,106700.0,106690.0,0.77015238]
[1734438509439,0.46297705,106700.0,106690.0,0.77015238]
[1734438509928,0.46297705,106700.0,106690.0,1.33176181]
[1734438510123,0.46297705,106700.0,106690.0,0.77015238]
[1734438510440,0.46297705,106700.0,106690.0,1.33176181]
[1734438510632,0.46297705,106700.0,106690.0,1.33097856]
[1734438510935,0.46297705,106700.0,106690.0,0.76936913]
[1734438511738,0.46297705,106700.0,106690.0,0.57915234]
[1734438513541,0.10217705,106700.0,106690.0,0.57915234]
[1734438513741,0.46297705,106700.0,106690.0,0.76936913]
[1734438513940,0.46297705,106700.0,106690.0,0.57915234]
[1734438514333,0.46297705,106700.0,106690.0,0.76936913]
[1734438515237,0.46297705,106700.0,106690.0,0.57915234]
[1734438515438,0.46297705,106700.0,106690.0,0.76936027]
[1734438516532,0.46297705,106700.0,106690.0,0.57915234]
[1734438516733,0.46297705,106700.0,106690.0,0.76936027]
[1734438519237,0.46297705,106700.0,106690.0,0.57915234]
[1734438519439,0.46297705,106700.0,106690.0,0.07379503]
[1734438525645,0.407667,106700.0,106690.0,0.07379503]
[1734438525950,0.46297705,106700.0,106690.0,0.07379503]
[1734438528350,0.10217705,106700.0,106690.0,0.07379503]
[1734438529351,0.10217705,106700.0,106690.0,0.12066603]
[1734438529745,0.046867,106700.0,106690.0,0.12066603]
[1734438530048,0.10217705,106700.0,106690.0,0.12066603]
[1734438530437,0.10217705,106700.0,106690.0,0.68227546]
[1734438531156,0.10217705,106700.0,106690.0,0.12066603]
[1734438532551,0.10217705,106700.0,106690.0,0.68227546]
[1734438533748,0.10217705,106700.0,106690.0,0.12066603]
[1734438536258,0.10217705,106700.0,106690.0,0.68227546]
[1734438536454,0.10217705,106700.0,106690.0,0.12066603]
[1734438536849,0.10217705,106700.0,106690.0,0.68227546]
[1734438537049,0.46297705,106700.0,106690.0,0.12066603]
[1734438539164,0.407667,106700.0,106690.0,0.12066603]
[1734438539351,0.407663,106710.0,106700.0,0.046867]
[1734438539555,0.407663,106710.0,106700.0,0.10217705]
[1734438539866,0.407663,106710.0,106700.0,0.14197705]
[1734438540751,0.407663,106710.0,106700.0,0.1972871]
[1734438540950,0.407663,106710.0,106700.0,0.14197705]
[1734438541150,0.046863,106710.0,106700.0,0.14197705]
[1734438543257,0.046863,106710.0,106700.0,0.15813388]
[1734438545854,0.046863,106710.0,106700.0,0.10282383]
[1734438546057,0.046863,106710.0,106700.0,0.15813388]
[1734438547055,0.10217305,106710.0,106700.0,0.14197705]
[1734438550862,0.046863,106710.0,106700.0,0.14197705]
[1734438552068,0.10217305,106710.0,106700.0,0.14197705]
[1734438553363,0.60460876,106720.0,106700.0,1.65071288]
[1734438553364,0.04695033,106720.0,106700.0,1.65071288]
[1734438553661,0.04695033,106720.0,106710.0,0.09741005]
[1734438553883,0.04695033,106720.0,106710.0,0.13761005]
[1734438554161,0.51837043,106720.0,106700.0,0.98600882]
[1734438554354,0.46306038,106720.0,106710.0,0.046862]
[1734438555058,0.40775033,106720.0,106710.0,0.10217205]
[1734438555857,0.36089033,106720.0,106710.0,0.10217205]
[1734438556463,9.033e-05,106720.0,106710.0,0.10217205]
[1734438556669,9.033e-05,106720.0,106710.0,0.46297205]
[1734438557364,9.033e-05,106720.0,106710.0,1.08818087]
[1734438558760,9.033e-05,106720.0,106710.0,0.46297205]
[1734438561385,0.0808,106740.0,106730.0,0.046854]
[1734438561573,0.0808,106740.0,106730.0,0.10216405]
[1734438561574,0.04,106740.0,106730.0,0.10216405]
[1734438561772,0.05581223,106740.0,106730.0,0.10216405]
[1734438563571,0.01581223,106740.0,106730.0,0.10216405]
[1734438563761,0.61498756,106750.0,106730.0,0.10216405]
[1734438564075,0.29378756,106750.0,106730.0,0.14901805]
[1734438564571,0.23847751,106750.0,106740.0,0.05531005]
[1734438564765,0.29378756,106750.0,106740.0,0.046849]
[1734438565271,0.65458756,106750.0,106740.0,0.046849]
[1734438565471,0.29378756,106750.0,106740.0,0.046849]
[1734438565869,0.25292675,106750.0,106740.0,0.1574691]
[1734438566067,0.17402675,106750.0,106740.0,0.1574691]
[1734438566268,0.05466448,106750.0,106740.0,0.1574691]
[1734438566871,0.05466448,106750.0,106740.0,0.15755107]
[1734438567377,0.00011524,106750.0,106740.0,0.55795107]
[1734438567574,0.00011524,106750.0,106740.0,0.59825107]
[1734438567871,0.3608,106760.0,106750.0,0.046845]
[1734438568075,0.3608,106760.0,106750.0,0.10215505]
[1734438568271,0.4815,106770.0,106750.0,0.1574651]
[1734438568272,0.528337,106770.0,106750.0,0.1574651]
[1734438568467,0.528337,106770.0,106760.0,0.10215105]
[1734438568674,0.58364705,106770.0,106760.0,0.046841]
[1734438568887,0.5837488,106770.0,106760.0,0.046841]
[1734438569581,0.59852648,106770.0,106760.0,0.046841]
[1734438570881,0.05637943,106770.0,106760.0,0.10215105]
[1734438571083,0.11168948,106770.0,106760.0,0.046841]
[1734438578576,0.11168948,106770.0,106760.0,0.10215105]
[1734438579085,0.11168948,106770.0,106760.0,0.085241]
[1734438579280,0.11168948,106770.0,106760.0,0.14055105]
[1734438579486,0.11168948,106770.0,106760.0,0.085241]
[1734438580687,0.11168948,106770.0,106760.0,0.14055105]
[1734438580688,0.05637943,106770.0,106760.0,0.14055105]
[1734438581082,0.11168948,106770.0,106760.0,0.085241]